bitfinex-derivatives/quotes_ETHF0:USTF0_20240907
["timestamp","ask_amount","ask_price","bid_price","bid_amount"]
[1725727596147,2.26743649,2293.0,2292.9,3.64395]
[1725727596563,4.50375969,2293.9,2292.9,9.2078]
[1725727596851,0.43593,2294.1,2293.8,4.35002972]
[1725727597047,2.83561159,2294.1,2293.8,3.2078]
[1725727597248,2.83561159,2294.1,2294.0,0.43594]
[1725727597453,2.83561159,2294.1,2293.9,0.43594]
[1725727597649,2.83561159,2294.1,2293.8,6.2278]
[1725727597851,3.96985623,2295.0,2294.2,0.43589]
[1725727598050,3.27145159,2294.5,2294.4,3.2078]
[1725727598252,2.83561159,2294.5,2294.4,3.2078]
[1725727607057,3.27145159,2294.5,2294.4,3.2078]
[1725727607258,2.83561159,2294.5,2293.8,10.3968]
[1725727607461,2.83561159,2294.0,2293.8,6.2278]
[1725727607764,0.3876,2294.4,2293.8,6.2278]
[1725727607765,2.83561159,2293.9,2293.8,3.2078]
[1725727607957,2.83561159,2293.9,2293.6,3.02]
[1725727608157,2.83561159,2293.7,2293.6,3.02]
[1725727609666,0.3876,2293.8,2293.6,3.02]
[1725727609966,2.83561159,2293.7,2293.6,3.02]
[1725727610560,2.83561159,2293.7,2293.6,3.45601]
[1725727611165,2.83561159,2293.7,2293.6,3.02]
[1725727612363,2.83561159,2293.7,2293.6,3.45601]
[1725727614361,0.82071,2294.2,2293.6,9.02]
[1725727614559,1.18601,2294.2,2293.9,6.2278]
[1725727614762,0.7501,2294.2,2293.9,6.66375]
[1725727614970,2.83561159,2294.0,2293.9,6.66375]
[1725727616468,2.83561159,2294.0,2293.9,6.2278]
[1725727617159,2.83561159,2294.0,2293.9,6.66376]
[1725727620273,2.83561159,2294.0,2293.9,6.2278]
[1725727620572,2.83561159,2294.0,2293.9,6.66376]
[1725727620872,2.83561159,2294.0,2293.9,6.2278]
[1725727622071,2.83561159,2294.0,2293.9,6.66376]
[1725727622472,2.83561159,2294.0,2293.9,6.2278]
[1725727622977,2.83561159,2294.0,2293.9,6.66376]
[1725727623176,2.83561159,2294.0,2293.9,6.2278]
[1725727629073,2.83561159,2294.0,2293.9,3.02]
[1725727629284,2.83561159,2294.0,2293.9,6.2278]
[1725727630183,3.27155159,2294.0,2293.9,6.2278]
[1725727630377,2.83561159,2294.0,2293.9,6.2278]
[1725727630878,3.27155159,2294.0,2293.9,3.2078]
[1725727631077,3.27155159,2294.0,2293.3,5.52223182]
[1725727631078,0.43605,2293.4,2293.3,4.169]
[1725727631284,1.09006,2293.6,2293.0,3.2078]
[1725727631285,0.43608,2293.3,2293.0,3.2078]
[1725727631584,0.4361,2293.2,2293.0,3.2078]
[1725727631782,0.43616,2292.8,2292.7,3.2078]
[1725727632080,4.3608,2293.2,2292.3,2.68602979]
[1725727632081,0.43622,2292.6,2292.3,3.2078]
[1725727632279,0.43624,2292.5,2292.3,3.2078]
[1725727632582,0.3642,2292.7,2292.3,3.2078]
[1725727632877,0.4362,2292.6,2292.3,3.2078]
[1725727633880,0.43622,2292.5,2292.3,3.2078]
[1725727636778,0.3642,2292.7,2292.3,3.2078]
[1725727636779,0.43624,2292.4,2292.3,3.2078]
[1725727636985,0.43623,2292.5,2292.3,3.2078]
[1725727637177,0.3642,2292.7,2292.3,3.2078]
[1725727637178,0.43624,2292.4,2292.3,3.2078]
[1725727637379,0.43623,2292.5,2292.3,3.2078]
[1725727637779,0.43621,2292.6,2292.3,3.2078]
[1725727638871,0.3853,2292.8,2292.6,0.43619]
[1725727639075,0.43612,2293.1,2292.7,3.2078]
[1725727639281,0.43611,2293.1,2292.7,3.64397]
[1725727639485,1.09013,2293.4,2292.7,3.2078]
[1725727640285,1.09019,2293.3,2292.5,3.02]
[1725727640481,0.43619,2292.7,2292.4,4.92778841]
[1725727640686,0.43618,2292.8,2292.4,4.03064]
[1725727640892,0.43622,2292.5,2292.4,1.2099]
[1725727641078,0.43622,2292.5,2291.3,2.05768841]
[1725727641079,1.09061,2292.4,2291.3,2.05768841]
[1725727641286,1.09061,2292.4,2291.4,0.43643]
[1725727641287,7.3185,2292.2,2291.4,0.43643]
[1725727641481,0.43636,2291.8,2291.3,4.36854]
[1725727642289,0.43643,2291.5,2291.3,0.7243]
[1725727642478,0.43643,2291.4,2291.3,0.7243]
[1725727643385,0.43643,2291.4,2291.3,0.3591]
[1725727644391,0.43643,2291.4,2290.6,0.22009243]
[1725727644392,4.364,2291.4,2290.6,3.2078]
[1725727644591,4.364,2291.4,2290.6,3.64438]
[1725727644592,3.02,2291.3,2290.6,3.64438]
[1725727644798,0.43651,2291.0,2290.6,3.64438]
[1725727645393,3.3769,2291.3,2290.6,3.2078]
[1725727645394,4.29898,2291.2,2290.6,3.2078]
[1725727645598,4.11123,2291.1,2290.6,3.2078]
[1725727645890,0.43656,2290.7,2290.6,3.2078]
[1725727646392,0.43656,2290.7,2290.5,0.7632]
[1725727646584,0.43658,2290.6,2290.5,0.7632]
[1725727646987,3.02,2290.8,2290.1,0.43667]
[1725727647183,3.02,2290.6,2290.0,3.5862]
[1725727647390,3.02,2290.6,2290.0,0.3784]
[1725727647391,0.43665,2290.3,2290.0,0.3784]
[1725727647590,0.43663,2290.4,2290.0,0.3784]
[1725727648191,0.43666,2290.2,2290.0,0.3784]
[1725727648386,0.43668,2290.1,2289.8,0.3863]
[1725727648595,0.43672,2289.9,2289.8,0.3863]
[1725727648789,3.2078,2290.3,2289.8,0.3863]
[1725727648790,0.43671,2290.0,2289.8,0.3863]
[1725727649997,0.43672,2289.9,2289.8,0.3863]
[1725727650196,0.43672,2289.9,2289.5,0.81519]
[1725727650493,0.43671,2290.0,2289.5,0.81519]
[1725727650694,0.4366,2290.6,2290.2,0.43665]
[1725727650898,3.2078,2291.0,2290.0,3.4225767]
[1725727651087,0.43657,2290.7,2290.3,0.43662]
[1725727651293,0.43657,2290.7,2290.4,0.3701]
[1725727651493,0.43656,2290.8,2290.4,0.3701]
[1725727651694,0.43657,2290.7,2290.4,0.3701]
[1725727651890,0.43656,2290.8,2290.4,0.80672]
[1725727652090,0.43656,2290.8,2290.4,0.80671]
[1725727652496,0.43657,2290.7,2290.4,0.3701]
[1725727653299,0.43655,2290.8,2290.4,0.3701]
[1725727653488,3.2078,2291.0,2290.5,0.4366]
[1725727653489,0.43654,2290.9,2290.5,0.4366]
[1725727653693,0.43656,2290.8,2290.4,0.80671]
[1725727654298,0.43657,2290.7,2290.4,0.80671]
[1725727654502,0.43656,2290.8,2290.4,0.80671]
[1725727655198,0.43655,2290.8,2290.4,0.3701]
[1725727655499,0.43655,2290.8,2290.4,0.80671]
[1725727655996,5.12123,2291.1,2290.7,0.43656]
[1725727655997,0.4365,2291.1,2290.7,0.43656]
[1725727656295,0.4365,2291.1,2290.7,0.43655]
[1725727656499,0.43651,2291.0,2290.6,3.64437]
[1725727657200,0.43656,2290.8,2290.6,3.2078]
[1725727658396,0.43654,2290.9,2290.6,3.2078]
[1725727658795,0.43655,2290.8,2290.6,3.2078]
[1725727659700,4.3656,2290.7,2290.3,1.33338841]
[1725727660002,0.43662,2290.5,2290.3,1.33338841]
[1725727660197,1.09137,2290.8,2290.2,0.43665]
[1725727660498,1.09137,2290.8,2290.1,0.81296]
[1725727660499,0.43662,2290.4,2290.1,0.81296]
[1725727660698,0.43661,2290.5,2290.1,0.81296]
[1725727661099,0.43666,2290.2,2290.1,0.3763]
[1725727661296,1.09156,2290.5,2289.9,3.2078]
[1725727661501,0.43668,2290.2,2289.9,3.2078]
[1725727661697,1.09156,2290.5,2289.9,3.2078]
[1725727661905,0.43667,2290.2,2289.9,3.64452]
[1725727662095,3.6024,2290.7,2289.9,3.2078]
[1725727662299,0.43662,2290.4,2290.1,0.43666]
[1725727663506,0.43661,2290.5,2290.1,0.43666]
[1725727664603,0.43663,2290.4,2290.1,0.43666]
[1725727665308,4.03898,2290.7,2289.9,3.2078]
[1725727665607,0.43659,2290.6,2290.3,0.43663]
[1725727666215,0.4366,2290.5,2290.2,0.43665]
[1725727666411,0.43659,2290.6,2290.3,0.43664]
[1725727667311,1.48605,2290.7,2290.0,0.43669]
[1725727667516,0.43663,2290.4,2290.1,0.43668]
[1725727667811,0.43659,2290.6,2290.3,0.43664]
[1725727668313,0.83117,2290.7,2290.4,0.43662]
[1725727668505,0.43657,2290.7,2290.4,0.81892]
[1725727668812,0.43656,2290.8,2290.4,0.3823]
[1725727669015,0.43657,2290.7,2290.4,0.3823]
[1725727669210,0.43657,2290.7,2290.4,0.81891]
[1725727669406,0.43656,2290.8,2290.5,0.4366]
[1725727669607,0.43656,2290.8,2290.5,3.6444]
[1725727670013,0.43656,2290.7,2290.5,3.6444]
[1725727670515,0.43655,2290.8,2290.5,0.4366]
[1725727671209,0.43657,2290.7,2290.5,0.4366]
[1725727671517,0.43659,2290.6,2290.4,0.3823]
[1725727671815,0.43659,2290.6,2290.4,0.81892]
[1725727672114,1.09137,2290.8,2290.4,0.3823]
[1725727672310,0.43659,2290.6,2290.4,0.3823]
[1725727672915,0.43659,2290.6,2290.4,0.81892]
[1725727675212,0.43659,2290.6,2290.4,0.3823]
[1725727675710,0.43659,2290.6,2290.4,0.81892]
[1725727676603,0.43658,2290.7,2290.4,0.81892]
[1725727676813,0.43659,2290.6,2290.4,0.81892]
[1725727677015,0.43659,2290.6,2290.4,0.3823]
[1725727678123,0.43659,2290.6,2290.4,0.81892]
[1725727679616,0.43659,2290.6,2290.4,0.3823]
[1725727680018,0.43659,2290.6,2290.4,0.81892]
[1725727680616,3.02,2290.5,2290.3,0.3714]
[1725727680816,4.47345,2290.5,2290.0,4.40049]
[1725727681219,0.43666,2290.3,2290.0,4.40049]
[1725727681514,4.47345,2290.5,2290.0,4.40049]
[1725727681709,4.47345,2290.5,2290.0,3.9638]
[1725727681912,0.43665,2290.3,2290.0,3.9638]
[1725727682916,0.43665,2290.3,2290.0,4.4005]
[1725727683113,4.47345,2290.5,2290.0,4.4005]
[1725727683114,0.43667,2290.2,2290.0,3.9638]
[1725727683314,0.43667,2290.2,2290.0,3.5749]
[1725727684011,0.43665,2290.3,2290.0,4.01159]
[1725727684218,0.43659,2290.6,2290.0,3.5749]
[1725727684413,0.43659,2290.6,2290.3,0.43663]
[1725727684618,0.4366,2290.5,2290.2,0.43665]
[1725727685918,0.43661,2290.5,2290.2,0.43666]
[1725727686123,0.43663,2290.4,2290.1,0.43667]
[1725727686326,3.02,2290.7,2290.0,4.01159]
[1725727686327,0.43665,2290.3,2290.0,4.01159]
[1725727687421,0.43663,2290.4,2290.1,0.43667]
[1725727687821,0.43663,2290.4,2290.1,0.43666]
[1725727688025,0.43663,2290.4,2290.2,0.3955]
[1725727688527,0.43662,2290.5,2290.2,0.83216]
[1725727689028,0.43662,2290.4,2290.2,0.3955]
[1725727689816,0.43662,2290.4,2290.2,0.83216]
[1725727690020,1.45575,2290.9,2290.2,0.83216]
[1725727690021,3.02,2291.1,2290.3,7.5742]
[1725727690221,3.02,2291.1,2290.3,4.73022972]
[1725727690425,1.48531,2291.2,2290.3,4.73022972]
[1725727690426,0.43659,2290.6,2290.4,0.43661]
[1725727690825,0.43659,2290.6,2290.4,1.57883972]
[1725727691028,0.43659,2290.6,2290.4,0.43661]
[1725727691331,0.43655,2290.8,2290.4,1.14222972]
[1725727691628,0.43659,2290.6,2290.3,5.16685972]
[1725727691828,0.43659,2290.6,2290.3,4.02463]
[1725727692032,1.09142,2290.7,2290.3,0.3802]
[1725727692422,1.09142,2290.7,2290.2,0.83216]
[1725727692423,0.3852,2290.6,2290.2,0.83216]
[1725727692622,3.02,2290.4,2290.1,1.14222972]
[1725727692826,3.02,2290.4,2290.0,2.32621972]
[1725727693130,0.43668,2290.1,2290.0,0.3671]
[1725727693322,3.02,2290.2,2289.9,3.2078]
[1725727693526,0.4367,2290.0,2289.9,3.2078]
[1725727693720,0.4367,2290.0,2289.7,0.43674]
[1725727694026,0.4367,2290.0,2289.7,1.57896972]
[1725727694325,0.43669,2290.1,2289.8,0.43673]
[1725727696128,0.4367,2290.0,2289.7,1.57896972]
[1725727698132,3.02,2290.2,2289.7,1.14222972]
[1725727698326,3.02,2290.0,2289.5,1.0994]
[1725727698522,0.43675,2289.8,2289.5,1.53619]
[1725727700435,0.43673,2289.9,2289.6,0.43677]
[1725727700939,0.43675,2289.8,2289.5,1.53619]
[1725727701432,0.43675,2289.8,2289.6,0.43677]
[1725727703438,0.43675,2289.8,2289.5,4.74398]
[1725727704254,0.43675,2289.8,2289.6,0.43677]
[1725727705849,3.2078,2290.2,2289.5,4.3072]
[1725727705850,3.02,2290.2,2289.5,4.3072]
[1725727706040,3.02,2290.2,2289.8,0.43673]
[1725727706240,0.43668,2290.1,2289.9,0.3799]
[1725727706447,0.4367,2290.0,2289.9,0.3799]
[1725727706855,0.43669,2290.1,2289.9,0.81662]
[1725727707156,0.4367,2290.0,2289.9,0.3799]
[1725727707452,0.43669,2290.1,2289.9,0.3799]
[1725727709059,3.45667,2290.2,2289.9,0.81662]
[1725727709354,0.43668,2290.1,2289.9,0.3799]
[1725727709859,0.43673,2289.9,2289.6,0.43676]
[1725727710059,0.43673,2289.9,2289.6,0.82256]
[1725727711755,0.43669,2290.1,2289.8,0.43673]
[1725727712055,0.43669,2290.1,2289.6,0.3858]
[1725727712056,0.43672,2289.9,2289.6,0.3858]
[1725727712256,0.43672,2289.9,2289.7,0.43675]
[1725727712551,6.2278,2290.2,2289.7,0.43675]
[1725727712552,3.45671,2290.0,2289.7,0.43675]
[1725727713158,3.45671,2290.0,2289.8,0.43674]
[1725727713361,0.3771,2290.3,2289.8,3.2078]
[1725727713554,0.3771,2290.3,2290.1,0.43667]
[1725727713745,0.81375,2290.3,2290.1,0.43667]
[1725727714166,5.18015,2290.3,2290.1,0.43667]
[1725727714855,0.43663,2290.4,2290.1,0.43666]
[1725727715056,3.02,2290.6,2290.2,0.7346]
[1725727715057,0.43664,2290.3,2290.2,0.7346]
[1725727716756,0.43669,2290.1,2289.8,3.64453]
[1725727717057,0.43669,2290.1,2289.9,0.3749]
[1725727718158,0.4367,2290.0,2289.9,0.3749]
[1725727719264,0.43669,2290.1,2289.9,0.3749]
[1725727719455,0.4367,2290.0,2289.9,0.3749]
[1725727721059,0.43672,2289.9,2289.7,0.363]
[1725727721261,0.43674,2289.8,2289.7,0.363]
[1725727726152,0.43673,2289.9,2289.7,0.363]
[1725727726862,0.43674,2289.8,2289.7,0.363]
[1725727733069,3.02,2290.0,2289.7,0.363]
[1725727733271,0.43672,2289.9,2289.7,0.79975]
[1725727734266,0.43674,2289.8,2289.7,0.363]
[1725727734469,3.45673,2289.9,2289.7,0.79976]
[1725727735169,3.02,2289.9,2289.8,0.43674]
[1725727735375,3.45672,2289.9,2289.7,0.79974]
[1725727735974,3.02,2289.9,2289.8,0.43674]
[1725727736576,3.45672,2289.9,2289.7,0.363]
[1725727736871,3.02,2289.9,2289.8,0.43674]
[1725727737071,0.43671,2290.0,2289.8,0.43674]
[1725727738078,0.43669,2290.1,2289.9,0.43672]
[1725727738271,0.4367,2290.0,2289.9,0.43672]
[1725727738472,0.4367,2290.0,2289.8,0.43672]
[1725727738674,0.4367,2290.0,2289.9,0.43672]
[1725727738871,0.43669,2290.1,2289.9,0.43672]
[1725727739379,0.43669,2290.1,2290.0,0.4437]
[1725727739979,3.82607,2290.2,2290.0,0.8804]
[1725727740272,0.43668,2290.1,2290.0,0.4437]
[1725727743368,3.82607,2290.2,2290.0,0.4437]
[1725727743573,0.43668,2290.1,2290.0,0.4437]
[1725727745581,3.3894,2290.2,2290.0,0.4437]
[1725727745775,0.43668,2290.1,2290.0,0.4437]
[1725727746975,3.82607,2290.2,2290.0,0.8804]
[1725727747380,3.82607,2290.2,2290.0,0.4437]
[1725727747381,0.43668,2290.1,2290.0,0.4437]
[1725727748484,3.82607,2290.2,2290.0,0.88039]
[1725727748687,0.43668,2290.1,2290.0,0.88039]
[1725727749984,3.82607,2290.2,2290.0,0.88039]
[1725727750386,0.43668,2290.1,2290.0,0.88039]
[1725727751782,3.39164977,2290.7,2290.0,10.8101]
[1725727751978,3.39164977,2290.9,2290.6,1.14222972]
[1725727752179,3.45644,2291.4,2290.8,3.2078]
[1725727752381,3.45644,2291.4,2291.1,0.43648]
[1725727752582,0.43645,2291.3,2291.1,3.2078]
[1725727752790,0.43647,2291.2,2290.9,0.43652]
[1725727752981,0.43646,2291.3,2290.9,1.14222972]
[1725727753287,0.43646,2291.3,2291.0,3.6443]
[1725727753483,3.02,2291.4,2291.1,0.43648]
[1725727753677,3.02,2291.4,2291.1,0.90138]
[1725727753875,1.35203,2291.5,2291.1,0.90138]
[1725727754075,0.4636,2291.5,2291.1,0.4649]
[1725727754279,0.4636,2291.5,2291.2,0.87076]
[1725727756186,0.90002,2291.5,2291.2,0.4343]
[1725727756384,0.43646,2291.3,2291.1,0.4649]
[1725727756584,0.43644,2291.4,2291.1,0.4649]
[1725727757283,3.92002,2291.5,2291.1,0.4649]
[1725727757690,3.92002,2291.5,2291.1,0.90139]
[1725727758190,0.43643,2291.4,2291.1,0.4649]
[1725727758392,3.92002,2291.5,2291.1,0.4649]
[1725727758586,0.43643,2291.4,2291.1,0.4649]
[1725727758784,3.92002,2291.5,2291.1,0.90139]
[1725727759084,0.43643,2291.4,2291.1,0.4649]
[1725727759882,3.4836,2291.5,2291.1,0.4649]
[1725727760093,0.43648,2291.2,2290.8,0.87084]
[1725727760289,0.43648,2291.2,2290.8,1.31974]
[1725727763589,0.43646,2291.3,2290.9,0.43652]
[1725727763785,0.43646,2291.3,2290.9,3.2078]
[1725727764088,0.43646,2291.3,2291.0,0.4365]
[1725727764487,0.43646,2291.3,2290.9,3.64432]
[1725727765189,0.43646,2291.3,2291.0,0.43651]
[1725727765586,0.43646,2291.3,2290.9,3.64432]
[1725727766889,0.43651,2291.0,2290.9,3.2078]
[1725727767290,0.4365,2291.1,2290.9,3.2078]
[1725727767486,0.4465,2291.1,2290.9,3.64432]
[1725727767689,0.43646,2291.3,2291.0,0.4365]
[1725727767890,0.43648,2291.2,2290.9,3.2078]
[1725727768293,0.43648,2291.2,2290.9,3.64432]
[1725727768998,0.43646,2291.3,2291.0,0.43651]
[1725727770193,0.43647,2291.2,2290.9,3.64431]
[1725727772201,0.43646,2291.3,2291.0,0.43651]
[1725727772391,3.2078,2291.5,2290.9,3.2078]
[1725727772790,0.43643,2291.4,2291.1,0.43648]
[1725727773704,0.43643,2291.4,2291.2,0.4461]
[1725727774401,0.43648,2291.2,2290.9,3.64432]
[1725727774701,0.43648,2291.2,2290.9,4.10612]
[1725727775093,0.43649,2291.1,2290.9,3.6696]
[1725727775288,0.4574,2291.1,2290.9,3.6696]
[1725727775492,0.4574,2291.1,2290.9,4.10612]
[1725727776804,0.4574,2291.1,2290.9,0.89832]
[1725727777000,0.4574,2291.1,2290.9,4.10612]
[1725727777802,0.89389,2291.1,2290.9,4.10612]
[1725727778005,0.4574,2291.1,2290.9,4.10612]
[1725727778507,0.89389,2291.1,2290.9,4.10612]
[1725727778695,0.4574,2291.1,2290.9,3.6696]
[1725727779004,0.4574,2291.1,2290.9,4.10611]
[1725727780007,0.89389,2291.1,2290.9,0.89831]
[1725727780203,0.4574,2291.1,2291.0,3.2078]
[1725727780706,0.89389,2291.1,2291.0,3.2078]
[1725727781905,0.4574,2291.1,2291.0,3.2078]
[1725727782102,3.2078,2292.0,2291.0,8.8326]
[1725727782303,0.4728,2291.9,2291.4,3.2078]
[1725727782518,0.90915,2291.9,2291.6,0.43639]
[1725727782705,0.4728,2291.9,2291.5,1.3408]
[1725727783211,0.43634,2291.9,2291.5,1.3408]
[1725727783409,0.43634,2291.9,2291.6,0.43638]
[1725727783602,0.43633,2292.0,2291.6,0.43638]
[1725727785102,1.7328,2292.1,2291.5,1.3408]
[1725727785103,0.4728,2292.1,2291.7,3.2078]
[1725727785899,1.26,2291.8,2291.5,0.4427]
[1725727786105,0.43639,2291.6,2291.5,0.4427]
[1725727786608,1.54064,2291.7,2291.2,0.4858]
[1725727786609,0.43642,2291.5,2291.2,0.4858]
[1725727786803,0.43642,2291.5,2291.2,0.9413]
[1725727787907,1.54064,2291.7,2291.2,0.9413]
[1725727788107,0.43645,2291.4,2291.2,0.9413]
[1725727788312,0.43642,2291.5,2291.2,0.9413]
[1725727789023,0.43639,2291.6,2291.2,1.37777]
[1725727790517,0.43642,2291.5,2291.2,0.9413]
[1725727790912,0.4497,2291.7,2291.2,0.9413]
[1725727791217,0.43643,2291.4,2291.2,0.9413]
[1725727793518,0.43645,2291.3,2291.2,0.9413]
[1725727793719,0.43645,2291.3,2291.2,0.4555]
[1725727799730,0.43645,2291.3,2290.7,1.33338841]
[1725727799731,1.09123,2291.1,2290.7,1.33338841]
[1725727799917,0.43657,2290.7,2290.4,0.936]
[1725727800113,3.02,2291.0,2290.4,4.58041]
[1725727800418,0.43657,2290.7,2290.4,4.58041]
[1725727800620,0.43657,2290.7,2290.4,4.1438]
[1725727801118,0.43659,2290.6,2290.4,4.1438]
[1725727801917,0.43657,2290.7,2290.4,4.1438]
[1725727802126,0.90246,2290.8,2290.4,4.58042]
[1725727802420,0.43657,2290.7,2290.4,4.58042]
[1725727802720,0.43651,2291.0,2290.7,0.43656]
[1725727802917,0.43651,2291.0,2290.8,0.9468]
[1725727803121,0.43651,2291.0,2290.9,0.4597]
[1725727804314,16.5926,2291.0,2290.3,1.33338841]
[1725727804621,0.4366,2290.6,2290.3,5.46908841]
[1725727804819,0.4366,2290.5,2290.3,4.1357]
[1725727807528,0.43659,2290.6,2290.3,4.57234]
[1725727807721,0.43662,2290.4,2290.3,4.1357]
[1725727808524,0.43662,2290.4,2290.3,0.9279]
[1725727808726,0.43668,2290.1,2290.0,3.2078]
[1725727810521,0.43665,2290.3,2290.0,3.64449]
[1725727810917,0.43666,2290.2,2290.0,3.2078]
[1725727811725,0.43665,2290.3,2290.0,3.2078]
[1725727812327,0.4721,2290.5,2290.1,0.43667]
[1725727812536,0.4721,2290.5,2290.2,0.4757]
[1725727812537,0.43661,2290.5,2290.2,0.4757]
[1725727812719,0.43661,2290.5,2290.3,0.4804]
[1725727812920,0.43661,2290.5,2290.4,0.4793]
[1725727815429,3.02,2290.8,2290.4,0.4793]
[1725727815430,0.43656,2290.8,2290.4,0.4793]
[1725727815730,0.43657,2290.7,2290.4,0.4793]
[1725727816031,0.43649,2291.2,2290.6,3.2078]
[1725727816234,0.43649,2291.2,2290.8,0.43653]
[1725727816433,0.43649,2291.2,2290.9,0.9542]
[1725727817035,0.43649,2291.1,2290.9,0.9542]
[1725727817239,0.43651,2291.0,2290.9,0.9542]
[1725727817438,0.43651,2291.0,2290.9,0.468]
[1725727821251,0.876,2291.1,2290.9,0.468]
[1725727822153,0.43651,2291.0,2290.9,0.468]
[1725727825051,0.876,2291.1,2290.9,0.468]
[1725727825450,0.4395,2291.1,2290.9,0.468]
[1725727825647,0.876,2291.1,2290.9,0.468]
[1725727825955,0.43649,2291.1,2290.9,0.468]
[1725727826450,0.43649,2291.1,2291.0,0.4626]
[1725727827344,3.4854,2291.4,2291.0,0.4626]
[1725727827544,3.92185,2291.4,2291.1,0.4701]
[1725727828150,0.43645,2291.3,2291.1,0.4701]
[1725727829255,0.43647,2291.2,2291.1,0.4701]
[1725727830050,0.4366,2290.6,2290.4,1.33338841]
[1725727830245,0.43657,2290.7,2290.3,4.56424]
[1725727831443,0.4877,2291.0,2290.3,4.1276]
[1725727831648,0.92422,2291.0,2290.6,0.43658]
[1725727831849,0.43653,2290.9,2290.7,0.9286]
[1725727832154,0.43653,2290.9,2290.8,0.4508]
[1725727834752,0.43652,2291.0,2290.8,0.4508]
[1725727836055,3.6808,2291.2,2290.8,0.4508]
[1725727836753,0.43652,2291.0,2290.8,0.4508]
[1725727836956,0.4365,2291.1,2290.8,0.4508]
[1725727838461,3.6808,2291.2,2290.8,0.88734]
[1725727838462,4.11728,2291.2,2290.8,0.88734]
[1725727838656,0.43649,2291.1,2290.8,0.4508]
[1725727839157,4.11728,2291.2,2290.8,0.4508]
[1725727839459,0.43649,2291.1,2290.8,0.4508]
[1725727842553,0.43653,2290.9,2290.8,0.4508]
[1725727842754,0.473,2291.2,2290.8,0.4508]
[1725727842755,0.43652,2291.0,2290.8,0.4508]
[1725727843661,0.4365,2291.1,2290.8,0.4508]
[1725727844964,0.43651,2291.0,2290.8,0.4508]
[1725727845360,0.90948,2291.2,2290.8,0.4508]
[1725727845965,0.90948,2291.2,2290.8,0.88733]
[1725727846363,0.473,2291.2,2290.8,0.4508]
[1725727846567,0.90949,2291.2,2290.8,0.88733]
[1725727846959,0.43649,2291.1,2290.8,0.88733]
[1725727847362,0.90948,2291.2,2290.8,0.88733]
[1725727847973,0.473,2291.2,2290.9,0.43653]
[1725727848270,0.90947,2291.2,2290.9,0.43653]
[1725727848473,0.473,2291.2,2290.9,0.43653]
[1725727848673,0.90947,2291.2,2290.9,0.43653]
[1725727849574,0.43649,2291.1,2290.9,0.43653]
[1725727850068,0.43649,2291.1,2290.8,0.4508]
[1725727850069,0.43649,2291.1,2290.8,0.88733]
[1725727852873,0.4365,2291.1,2290.8,0.88733]
[1725727853576,0.4365,2291.1,2290.8,0.88734]
[1725727854072,0.43655,2290.8,2290.7,0.469]
[1725727854573,0.43655,2290.8,2290.5,0.4858]
[1725727854574,0.43658,2290.6,2290.5,0.4858]
[1725727854775,0.43658,2290.6,2290.4,0.4804]
[1725727855872,0.4366,2290.5,2290.4,0.4804]
[1725727856677,0.4366,2290.5,2290.3,0.4843]
[1725727857679,0.4581,2290.7,2290.3,0.4843]
[1725727858069,0.43658,2290.6,2290.3,0.4843]
[1725727858673,2.94081911,2291.2,2290.4,11.73562972]
[1725727858875,0.43653,2290.9,2290.6,0.43658]
[1725727859177,0.43653,2290.9,2290.7,0.4763]
[1725727859375,0.43653,2290.9,2290.7,0.9625]
[1725727859878,4.3656,2290.8,2290.3,1.14222972]
[1725727860073,0.4398,2290.7,2290.3,1.14222972]
[1725727860277,0.43661,2290.5,2290.3,1.14222972]
[1725727860579,6.2278,2290.4,2290.1,1.14222972]
[1725727860781,0.4367,2290.0,2289.9,1.33338841]
[1725727861082,0.4367,2290.0,2289.8,3.2078]
[1725727861377,0.43672,2289.9,2289.8,3.2078]
[1725727861581,0.43675,2289.8,2289.6,0.9519]
[1725727861881,0.4398,2289.9,2289.6,0.9519]
[1725727862280,0.87652,2289.9,2289.6,0.9519]
[1725727863281,0.4398,2289.9,2289.6,0.9519]
[1725727863584,0.4546,2290.1,2289.7,0.43675]
[1725727863790,0.4546,2290.1,2289.6,1.38866]
[1725727863791,0.89128,2290.1,2289.6,1.38866]
[1725727864079,0.89128,2290.1,2289.7,0.43675]
[1725727864286,0.89128,2290.1,2289.8,0.4445]
[1725727865389,0.43661,2290.5,2290.1,0.43667]
[1725727865585,0.43661,2290.5,2290.2,0.8952]
[1725727866276,0.487,2290.6,2290.2,0.8952]
[1725727866277,0.43662,2290.4,2290.2,0.8952]
[1725727867682,0.487,2290.6,2290.2,0.8952]
[1725727867987,0.487,2290.6,2290.3,0.89253]
[1725727868893,0.92359,2290.6,2290.3,0.89253]
[1725727869188,0.92359,2290.6,2290.3,0.4559]
[1725727869189,0.487,2290.6,2290.3,0.4559]
[1725727869590,0.92359,2290.6,2290.3,0.4559]
[1725727870095,3.64437,2290.7,2290.3,0.89253]
[1725727870389,3.64437,2290.7,2290.4,0.43662]
[1725727870591,3.64437,2290.7,2290.3,0.89253]
[1725727871590,3.2078,2290.7,2290.4,0.43662]
[1725727871788,0.43655,2290.8,2290.3,3.6637]
[1725727871982,0.43655,2290.8,2290.4,0.43661]
[1725727872594,0.88804,2290.9,2290.6,0.43658]
[1725727872785,0.88804,2290.9,2290.7,0.9585]
[1725727873382,0.4515,2290.9,2290.7,0.9585]
[1725727873689,0.88803,2290.9,2290.7,0.9585]